bitfinex/quotes_SOLUSD_20240809
["timestamp","ask_amount","ask_price","bid_price","bid_amount"]
[1723167679389,6.1981,161.34,161.29,15.5]
[1723167679565,1.55000165,161.33,161.27,6.2007]
[1723167679767,1.55010044,161.32,161.27,6.2007]
[1723167680074,33.25,161.35,161.27,15.5011]
[1723167680280,6.1981,161.34,161.29,6.1996]
[1723167681361,6.1985,161.33,161.28,6.2003]
[1723167681768,15.2229,161.33,161.27,15.5011]
[1723167682285,15.2229,161.33,161.29,6.2]
[1723167682474,21.4213,161.33,161.28,6.2003]
[1723167683585,6.199,161.32,161.27,15.5011]
[1723167683994,6.199,161.32,161.27,21.7017]
[1723167684497,33.25,161.31,161.21,33.25]
[1723167684682,39.4504,161.28,161.23,6.2022]
[1723167685292,21.55065617,161.3,161.2,15.5078]
[1723167685293,49.9004,161.26,161.2,15.5078]
[1723167685603,33.25,161.24,161.16,15.5118]
[1723167685765,6.2026,161.23,161.18,6.2042]
[1723167686566,6.2026,161.23,161.17,6.2045]
[1723167686772,6.2027,161.22,161.17,6.2045]
[1723167687310,33.25,161.18,161.12,15.5158]
[1723167687497,1.45713685,161.17,161.12,15.5158]
[1723167687697,2.48704404,161.22,161.12,15.5158]
[1723167687698,33.25,161.22,161.15,15.5133]
[1723167688072,33.25,161.22,161.17,6.2044]
[1723167688274,33.25,161.22,161.15,15.5133]
[1723167688970,6.2031,161.21,161.15,21.7186]
[1723167689370,39.4527,161.22,161.16,6.2047]
[1723167689993,33.25,161.22,161.16,6.2047]
[1723167690785,33.25,161.2,161.15,15.5133]
[1723167691096,39.4534,161.2,161.15,15.5133]
[1723167691472,6.2057,161.15,161.1,15.5176]
[1723167691677,33.25,161.16,161.11,6.2068]
[1723167691892,33.25,161.16,161.1,21.7249]
[1723167692194,33.25,161.16,161.1,15.5176]
[1723167692699,6.2057,161.15,161.1,15.5176]
[1723167693105,1.55183178,161.14,161.1,15.5176]
[1723167694295,41.00763178,161.14,161.08,6.208]
[1723167694495,1.55199924,161.13,161.08,6.208]
[1723167694829,39.4565,161.12,161.06,21.7297]
[1723167694976,1.55212348,161.11,161.06,21.7297]
[1723167695296,1.55212446,161.1,161.06,21.7297]
[1723167695485,39.4565,161.12,161.06,21.7297]
[1723167695689,1.55212928,161.11,161.06,21.7297]
[1723167696091,34.8022338,161.1,161.06,15.5213]
[1723167696489,1.55224999,161.09,161.06,15.5213]
[1723167696875,33.25,161.08,161.03,6.2098]
[1723167698501,39.4581,161.08,161.03,6.2098]
[1723167699475,20.0,161.09,161.02,15.5257]
[1723167699476,39.4589,161.06,161.02,15.5257]
[1723167699795,1.55263977,161.05,161.02,15.5257]
[1723167700008,1.55263955,161.04,161.02,15.5257]
[1723167700205,41.0115782,161.06,161.02,15.5257]
[1723167700392,41.0115782,161.06,161.01,6.2107]
[1723167701215,39.4589,161.06,161.01,6.2107]
[1723167702114,33.25,161.06,161.02,15.5254]
[1723167702985,33.25,161.06,161.02,6.2103]
[1723167703389,33.25,161.06,161.01,6.2105]
[1723167704315,6.5808,161.08,160.95,21.8305]
[1723167704316,33.25,161.02,160.95,21.8305]
[1723167704491,33.25,161.06,160.96,45.0]
[1723167705290,33.25,161.06,161.0,15.527]
[1723167705490,39.4589,161.06,161.01,6.2107]
[1723167706421,6.2093,161.05,161.0,15.527]
[1723167706714,6.2093,161.05,161.0,21.738]
[1723167707621,33.25,161.06,161.02,6.2102]
[1723167707919,6.2086,161.07,161.0,15.527]
[1723167708101,33.25,161.08,161.02,6.21]
[1723167708615,6.208,161.09,161.04,6.2095]
[1723167708819,90.62339701,161.1,161.04,6.2095]
[1723167709399,6.2078,161.09,161.04,6.2095]
[1723167709802,6.2078,161.09,161.03,6.2099]
[1723167710309,51.16609701,161.1,161.04,66.5367]
[1723167710497,33.25,161.16,161.05,33.96634775]
[1723167710692,33.25,161.16,161.12,6.2065]
[1723167710919,15.3071,161.17,161.1,15.5179]
[1723167711212,15.3071,161.17,161.07,33.25]
[1723167711213,33.25,161.18,161.13,15.5153]
[1723167711417,33.25,161.18,161.13,21.7213]
[1723167711990,33.25,161.16,161.09,15.5185]
[1723167712193,33.25,161.14,161.05,15.5223]
[1723167712400,6.2065,161.12,161.07,6.2084]
[1723167712627,6.2061,161.13,161.07,6.2084]
[1723167712808,6.2061,161.13,161.08,6.2079]
[1723167712990,33.25,161.14,161.08,6.2079]
[1723167713195,33.25,161.14,161.09,6.2076]
[1723167713507,39.4558,161.14,161.09,6.2076]
[1723167713710,39.4558,161.14,161.08,21.7281]
[1723167713907,39.4558,161.14,161.09,45.0]
[1723167714217,6.2062,161.13,161.08,21.7281]
[1723167714396,6.2062,161.13,161.08,21.728]
[1723167714598,6.2055,161.15,161.09,6.2073]
[1723167715000,39.455,161.16,161.08,15.5201]
[1723167715220,33.25,161.18,161.11,15.5173]
[1723167715433,6.2042,161.19,161.12,45.0]
[1723167715900,6.46720778,161.2,161.14,15.5144]
[1723167716100,6.46720778,161.2,161.16,6.2049]
[1723167716317,21.5101,161.21,161.15,6.2053]
[1723167716724,6.2035,161.2,161.15,6.2053]
[1723167716909,6.2039,161.19,161.14,15.5144]
[1723167717340,6.2034,161.2,161.14,21.7199]
[1723167717500,6.2041,161.19,161.12,45.0]
[1723167717825,33.25,161.2,160.96,33.25]
[1723167717826,33.25,161.16,161.05,48.7721]
[1723167718132,1.55166604,161.15,161.05,33.25]
[1723167718299,33.25,161.16,161.08,15.52]
[1723167718617,33.25,161.16,161.08,21.728]
[1723167718825,1.55181902,161.15,161.08,21.728]
[1723167719119,33.25,161.14,161.08,15.52]
[1723167719316,39.455,161.16,161.1,6.2072]
[1723167719724,39.4545,161.18,161.12,6.2064]
[1723167720019,26.2047,161.17,161.12,6.2064]
[1723167720227,6.205,161.16,161.11,21.7239]
[1723167720527,20.0,161.17,161.12,6.2063]
[1723167720821,33.25,161.18,161.12,6.2063]
[1723167721020,6.2046,161.17,161.12,6.2063]
[1723167721242,39.4542,161.18,161.12,6.2063]
[1723167721842,39.4542,161.18,161.13,6.206]
[1723167722053,33.25,161.2,161.13,15.5144]
[1723167722225,15.3071,161.21,161.16,6.2046]
[1723167722637,6.203,161.21,161.16,6.2046]
[1723167722949,39.4527,161.22,161.17,6.2044]
[1723167723120,33.25,161.24,161.16,15.5122]
[1723167723319,33.25,161.26,161.2,6.2032]
[1723167723540,33.25,161.26,161.19,21.7131]
[1723167723923,6.2023,161.23,161.19,15.5093]
[1723167724249,33.25,161.22,161.14,6.2057]
[1723167724417,6.2039,161.19,161.13,15.5154]
[1723167724620,6.2035,161.2,161.14,45.0]
[1723167725040,6.2035,161.2,161.14,51.2057]
[1723167725041,7.75469904,161.2,161.14,51.2057]
[1723167725438,7.75469904,161.2,161.15,6.2053]
[1723167725439,6.2035,161.2,161.15,6.2053]
[1723167725645,39.4527,161.22,161.16,6.2049]
[1723167725944,39.4527,161.22,161.14,45.0]
[1723167725945,6.2046,161.17,161.14,45.0]
[1723167726152,6.2044,161.18,161.13,6.2061]
[1723167726341,33.25,161.19,161.12,15.5159]
[1723167726649,6.2035,161.2,161.14,6.2057]
[1723167726837,6.2039,161.19,161.14,6.2057]
[1723167727043,1.5513741,161.18,161.12,15.5159]
[1723167727749,1.55153386,161.17,161.12,15.5159]
[1723167727950,6.205,161.16,161.12,15.5159]
[1723167728125,1.55153386,161.17,161.12,21.7224]
[1723167728326,33.25,161.19,161.12,15.5159]
[1723167728534,39.4531,161.21,161.13,45.0]
[1723167730038,39.4531,161.21,161.16,6.2049]
[1723167730438,6.2035,161.2,161.14,6.2054]
[1723167730758,33.25,161.21,161.13,51.2061]
[1723167730941,6.2042,161.18,161.12,21.7224]
[1723167731137,33.25,161.17,161.08,16.5344]
[1723167731337,6.2072,161.11,161.05,12.29]
[1723167731655,6.2072,161.11,161.06,6.2088]
[1723167732035,1.55200172,161.1,161.04,6.2092]
[1723167732554,7.75930172,161.1,161.04,6.2092]
[1723167733447,7.75930172,161.1,161.05,6.2092]
[1723167733639,7.75930172,161.1,161.04,6.2096]
[1723167733858,6.2077,161.09,161.04,6.2096]
[1723167734051,1.55233088,161.08,161.04,6.2096]
[1723167734250,1.55233121,161.07,161.04,6.2096]
[1723167734451,1.55233135,161.08,160.99,15.5282]
[1723167734646,6.2087,161.07,161.01,6.2104]
[1723167734840,41.01129368,161.07,161.01,6.2104]
[1723167735461,39.4587,161.07,161.01,6.2104]
[1723167735959,33.25,161.07,161.02,6.2103]
[1723167736131,33.25,161.09,161.02,15.5259]
[1723167736453,33.25,161.15,161.09,6.2075]
[1723167737038,39.4557,161.15,161.09,6.2075]
[1723167737237,6.2059,161.14,161.09,6.2075]
[1723167737440,6.2059,161.14,161.08,15.5201]
[1723167737441,6.2062,161.13,161.08,15.5201]
[1723167737647,33.25,161.13,161.04,15.5235]
[1723167738054,39.4562,161.13,161.07,6.2081]
[1723167738336,39.4554,161.15,161.09,6.2076]
[1723167738842,6.2041,161.19,161.14,6.2057]
[1723167739036,33.25,161.23,161.12,33.25]
[1723167739239,6.2046,161.17,161.12,15.5154]
[1723167740062,39.4541,161.19,161.13,6.2058]
[1723167740253,39.4534,161.21,161.14,45.0]
[1723167740436,6.204,161.19,161.13,6.2061]
[1723167740645,33.25,161.17,161.08,15.5194]
[1723167740862,39.4554,161.15,161.09,6.2073]
[1723167741243,33.25,161.15,161.08,15.5194]
[1723167742042,33.25,161.17,161.08,15.5194]
[1723167742236,33.25,161.17,161.12,6.2065]
[1723167742237,20.0,161.16,161.12,6.2065]
[1723167742461,33.25,161.21,161.15,6.2053]
[1723167742938,33.25,161.21,161.14,15.5143]
[1723167743140,39.4534,161.21,161.15,6.2052]
[1723167743359,33.25,161.21,161.16,6.2049]
[1723167743563,33.25,161.23,161.17,6.2044]
[1723167743866,33.25,161.25,161.17,15.5114]
[1723167744169,33.25,161.25,161.18,0.71367875]
[1723167744467,33.25,161.25,161.18,45.71367875]
[1723167744953,15.1909,161.26,161.18,45.71367875]
[1723167745155,33.25,161.27,161.2,15.5084]
[1723167745362,26.7235885,161.31,161.26,6.2011]
[1723167745363,49.1334,161.31,161.26,6.2011]
[1723167745662,6.2,161.29,161.23,21.7076]
[1723167745863,33.25,161.29,161.21,51.2027]
[1723167746060,33.25,161.29,161.21,6.2027]
[1723167746260,33.25,161.29,161.2,6.2034]
[1723167746261,6.2012,161.26,161.2,6.2034]
[1723167746460,6.2012,161.26,161.21,6.2029]
[1723167746849,6.2012,161.26,161.19,21.7123]
[1723167747056,6.2012,161.26,161.2,45.0]
[1723167747253,33.25,161.27,161.24,6.2018]
[1723167747456,17.43373208,161.31,161.22,21.709]
[1723167747457,33.25,161.29,161.22,21.709]
[1723167747657,6.2008,161.27,161.22,21.709]
[1723167747856,33.25,161.27,161.18,15.5099]
[1723167748553,6.2015,161.25,161.2,6.2034]
[1723167748766,6.2011,161.26,161.2,6.2034]
[1723167749070,39.4508,161.27,161.21,6.203]
[1723167749279,39.4508,161.27,161.2,15.5077]
[1723167749944,39.4508,161.27,161.2,21.7108]
[1723167750372,39.4508,161.27,161.21,6.203]
[1723167752871,6.2015,161.26,161.2,21.711]
[1723167753365,33.25,161.27,161.16,55.2031]
[1723167753573,33.25,161.27,161.17,51.2042]
[1723167753574,6.2023,161.23,161.17,51.2042]
[1723167753944,6.2023,161.23,161.18,6.2041]
[1723167754275,33.25,161.25,161.19,6.2038]
[1723167754466,1.55087073,161.24,161.17,51.2042]
[1723167754776,1.55096031,161.24,161.17,51.2042]
[1723167754977,33.25,161.23,161.13,31.0586]
[1723167755157,6.2039,161.19,161.13,37.2644]
[1723167755359,6.2047,161.17,161.13,15.5153]
[1723167755781,7.75555402,161.18,161.13,15.5153]
[1723167756272,6.2042,161.18,161.13,15.5153]
[1723167756479,7.75614999,161.17,161.12,6.2065]
[1723167756681,33.25,161.19,161.09,16.5174]
[1723167756863,33.25,161.21,161.15,15.5125]
[1723167757051,48.6249,161.23,161.17,15.5107]
[1723167757258,39.4508,161.27,161.21,6.203]
[1723167757558,15.3749,161.28,161.22,15.5064]
[1723167757757,21.5754,161.28,161.23,6.2022]
[1723167758078,33.25,161.27,161.19,6.2035]
[1723167758257,33.25,161.27,161.18,21.9572]
[1723167758869,22.7847,161.32,161.26,6.201]
[1723167759175,22.7847,161.32,161.18,6.4472]
[1723167759176,6.2004,161.28,161.22,6.2023]
[1723167759385,33.25,161.3,161.23,15.5053]
[1723167759864,39.4499,161.3,161.24,6.2016]
[1723167760175,6.2,161.29,161.24,6.2016]
[1723167760686,33.25,161.3,161.23,15.5053]
[1723167760873,6.1992,161.31,161.26,6.2011]
[1723167761060,1.55029941,161.35,161.25,15.5029]
[1723167761261,33.25,161.35,161.26,0.71164575]
[1723167761466,39.448,161.35,161.29,6.1998]
[1723167761667,33.25,161.35,161.28,15.5008]
[1723167762573,6.1984,161.34,161.28,21.7011]
[1723167762771,6.1985,161.33,161.28,15.5008]
[1723167762982,39.4485,161.33,161.28,15.5008]
[1723167763282,33.25,161.31,161.24,60.5039]
[1723167763581,33.25,161.31,161.24,15.5039]
[1723167763582,6.2,161.29,161.24,15.5039]
[1723167763964,6.2004,161.28,161.24,15.5039]
[1723167765680,39.45,161.29,161.24,15.5039]
[1723167766374,39.45,161.29,161.24,21.7057]
[1723167766776,82.8731,161.44,161.27,15.5017]
[1723167766777,24.21882152,161.37,161.27,15.5017]
[1723167766981,33.25,161.35,161.29,6.1999]
[1723167767656,33.25,161.33,161.24,15.5047]
[1723167767858,6.1996,161.3,161.25,6.2014]
[1723167768479,39.4502,161.29,161.24,21.7065]
[1723167769057,39.4493,161.31,161.24,15.5047]
[1723167769257,39.4493,161.31,161.25,45.0]
[1723167769481,6.1997,161.3,161.24,21.7063]
[1723167769976,6.1997,161.3,161.25,6.2013]
[1723167770185,33.25,161.31,161.24,15.5047]
[1723167770364,39.4493,161.31,161.26,6.201]
[1723167770572,6.1996,161.3,161.25,6.2014]
[1723167770890,33.25,161.29,161.24,15.5047]
[1723167771789,39.4508,161.27,161.21,21.7103]
[1723167771963,39.4516,161.25,161.21,15.5076]
[1723167772567,6.2019,161.24,161.19,6.2038]
[1723167773071,33.25,161.25,161.21,15.5073]
[1723167773682,33.25,161.27,161.22,6.2024]
[1723167774057,33.25,161.27,161.23,6.2021]
[1723167774560,33.25,161.27,161.22,6.2026]
[1723167775165,39.4511,161.27,161.21,21.7103]
[1723167775385,33.25,161.27,161.21,21.7103]
[1723167775764,33.25,161.27,161.21,15.5073]
[1723167775965,2.51036492,161.32,161.22,6.5143]
[1723167776166,39.4495,161.31,161.25,6.2012]
[1723167776493,33.25,161.31,161.26,15.502]
[1723167776789,33.25,161.29,161.24,6.2018]
[1723167776962,39.45,161.29,161.24,6.2018]
[1723167777978,33.25,161.27,161.23,21.7079]
[1723167778592,33.25,161.27,161.23,15.5056]
[1723167778779,39.451,161.27,161.23,15.5056]
[1723167778977,33.25,161.27,161.23,21.7077]
[1723167779178,33.25,161.27,161.23,15.5056]
[1723167779985,33.25,161.27,161.23,21.7078]
[1723167780786,39.4507,161.27,161.23,15.5056]
[1723167780972,6.2011,161.26,161.21,6.203]
[1723167781478,39.4507,161.27,161.22,6.2026]
[1723167781676,33.25,161.27,161.23,6.2022]
[1723167781878,33.25,161.27,161.22,6.2026]
[1723167782065,33.25,161.27,161.2,15.5086]
[1723167782263,39.4516,161.25,161.2,15.5086]
[1723167782466,33.25,161.25,161.2,21.7119]
[1723167782667,33.25,161.27,161.2,15.5086]
[1723167783076,33.25,161.27,161.23,6.2022]
[1723167783276,33.25,161.27,161.24,6.2018]
[1723167783479,15.9021,161.28,161.24,6.2018]
[1723167783682,33.25,161.31,161.24,15.5039]
[1723167783884,6.1996,161.3,161.25,6.2015]
[1723167784681,6.1996,161.3,161.24,21.7057]
[1723167785481,39.4502,161.29,161.24,21.7057]
[1723167785667,39.4502,161.29,161.19,64.2679]
[1723167785668,25.88,161.27,161.23,6.2021]
[1723167786787,25.88,161.27,161.22,6.2026]
[1723167786988,25.88,161.26,161.23,6.2021]
[1723167787188,25.88,161.28,161.23,15.5049]
[1723167787995,25.88,161.28,161.24,6.2019]
[1723167788399,32.0804,161.28,161.23,21.7071]
[1723167789206,25.88,161.28,161.23,21.7071]
[1723167789384,32.0804,161.28,161.23,21.7071]
[1723167790420,28.5502,161.32,161.27,6.2007]
[1723167790581,8.9140435,161.33,161.26,15.5029]
[1723167790582,6.46280022,161.33,161.29,6.1998]
[1723167790782,32.34280022,161.33,161.28,6.2003]
[1723167790976,6.46280022,161.33,161.29,15.4997]
[1723167791175,25.88,161.34,161.29,15.4997]
[1723167791690,25.88,161.34,161.31,6.1992]
[1723167792691,25.88,161.35,161.32,6.1987]
[1723167793008,25.88,161.34,161.29,15.4997]
[1723167793577,25.88,161.35,161.29,15.4997]
[1723167794005,25.88,161.34,161.29,15.4997]
[1723167795079,25.88,161.34,161.31,6.1992]
[1723167795505,25.88,161.34,161.29,15.4997]
[1723167795506,25.88,161.34,161.3,6.1995]
[1723167796023,25.88,161.31,161.26,21.7034]
[1723167796243,25.88,161.28,161.26,15.5027]
[1723167796417,25.88,161.28,161.24,6.2019]
[1723167796617,25.88,161.27,161.23,21.7078]
[1723167796915,25.88,161.27,161.24,6.2018]
[1723167797727,25.88,161.28,161.25,6.2015]
[1723167797933,25.88,161.28,161.26,6.2009]
[1723167798132,25.88,161.29,161.27,6.2007]
[1723167799235,25.88,161.3,161.27,15.5011]
[1723167799415,25.88,161.32,161.29,6.1996]
[1723167801125,25.88,161.33,161.29,6.1996]
[1723167801328,25.88,161.33,161.3,6.1995]
[1723167801522,32.0785,161.33,161.27,21.7015]
[1723167802040,32.0785,161.33,161.27,21.7018]
[1723167803041,32.0785,161.33,161.23,31.0101]
[1723167803042,6.1981,161.34,161.28,6.2003]
[1723167803242,25.88,161.33,161.29,15.4994]
[1723167803445,25.88,161.33,161.26,6.2011]
[1723167803627,6.199,161.32,161.26,6.2011]
[1723167803812,25.88,161.31,161.27,6.2006]
[1723167804015,25.88,161.31,161.28,6.2002]
[1723167804440,25.88,161.31,161.27,6.2007]
[1723167805030,25.88,161.31,161.3,6.1996]
[1723167805235,25.88,161.33,161.3,6.1996]
[1723167805437,25.88,161.33,161.3,21.6983]
[1723167805843,25.88,161.33,161.3,15.4988]
[1723167807118,25.88,161.31,161.27,15.5019]
[1723167807318,25.88,161.31,161.27,21.7023]
[1723167807520,25.88,161.31,161.27,15.5019]
[1723167807943,25.88,161.33,161.27,15.5019]
[1723167809743,25.88,161.31,161.27,15.5019]
[1723167810331,25.88,161.31,161.28,6.2003]
[1723167810936,25.88,161.31,161.29,6.1999]
[1723167812049,25.88,161.31,161.27,15.5019]
[1723167812428,25.88,161.31,161.27,21.7025]
[1723167813434,25.88,161.28,161.23,15.5049]
[1723167813628,25.88,161.26,161.23,15.5049]
[1723167813833,25.88,161.25,161.2,21.7115]
[1723167814131,25.88,161.24,161.21,6.2029]
[1723167814636,25.88,161.24,161.2,21.7119]
[1723167814838,25.88,161.23,161.2,21.7119]
[1723167815253,25.88,161.24,161.2,21.7119]
[1723167815740,32.082,161.24,161.2,15.5085]
[1723167815952,25.88,161.24,161.21,6.203]
[1723167816263,41.1673,161.25,161.21,6.203]
[1723167816632,21.489,161.25,161.2,21.7119]
[1723167816865,25.88,161.22,161.17,15.5114]
[1723167817039,25.88,161.21,161.18,6.2041]
[1723167817238,25.88,161.22,161.18,6.2041]
[1723167817454,25.88,161.22,161.19,6.2038]
[1723167818358,25.88,161.23,161.19,6.2038]
[1723167818533,41.1673,161.25,161.19,15.5087]
[1723167818731,41.0324,161.29,161.24,15.5045]
[1723167818928,41.0324,161.29,161.26,6.2008]
[1723167819154,25.88,161.29,161.26,6.2008]
[1723167819353,25.88,161.3,161.26,6.2008]
[1723167821143,25.88,161.27,161.22,6.2025]
[1723167821553,25.88,161.27,161.2,41.3882]
[1723167821554,25.88,161.27,161.23,6.2022]
[1723167821755,32.0804,161.28,161.23,6.2022]
[1723167823049,25.88,161.28,161.23,6.202]
[1723167823251,21.61579049,161.33,161.24,70.88]
[1723167823459,21.61579049,161.33,161.26,25.88]
[1723167823460,41.0324,161.33,161.26,25.88]
[1723167823766,47.2309,161.33,161.28,6.2003]
[1723167823949,47.2309,161.33,161.27,21.7023]
[1723167824541,25.88,161.31,161.24,70.88]
[1723167824759,25.88,161.29,161.24,15.5047]
[1723167825645,25.88,161.29,161.25,6.2014]
[1723167826341,33.63039863,161.29,161.24,15.5047]
[1723167826541,25.88,161.27,161.24,15.5047]
[1723167826741,25.88,161.27,161.22,6.2026]
[1723167827035,25.88,161.26,161.23,6.2022]
[1723167827267,25.88,161.27,161.23,6.2022]
[1723167828346,25.88,161.24,161.21,6.2029]
[1723167828554,25.88,161.24,161.2,15.5077]
[1723167828874,25.88,161.24,161.2,21.7111]
[1723167829237,25.88,161.25,161.2,21.7111]
[1723167829951,25.88,161.25,161.21,6.2029]
[1723167830338,25.88,161.24,161.21,6.2029]
[1723167831468,25.88,161.28,161.17,15.5114]
[1723167831469,25.88,161.22,161.17,15.5114]
[1723167831761,25.88,161.21,161.17,15.5114]
[1723167832341,25.88,161.23,161.17,15.5114]
[1723167832743,25.88,161.23,161.2,6.2034]
[1723167833354,25.88,161.22,161.19,6.2038]
[1723167834348,25.88,161.22,161.17,21.7156]
[1723167834564,25.88,161.21,161.18,6.2042]
[1723167834764,25.88,161.22,161.19,6.2037]
[1723167834968,25.88,161.23,161.19,6.2037]
[1723167835143,25.88,161.23,161.2,6.2034]
[1723167835339,25.88,161.22,161.17,15.5114]
[1723167835552,25.88,161.22,161.18,6.2042]
[1723167836056,25.88,161.22,161.19,6.2038]
[1723167840177,25.88,161.21,161.19,6.2038]
[1723167840643,25.88,161.2,161.17,15.5114]
[1723167840847,25.88,161.18,161.13,15.5146]
[1723167841058,25.88,161.17,161.14,6.2055]
[1723167841243,25.88,161.16,161.13,15.5146]
[1723167841443,25.88,161.16,161.14,6.2057]
[1723167841759,25.88,161.17,161.15,6.2053]
[1723167841959,25.88,161.18,161.13,15.5146]
[1723167842351,25.88,161.18,161.14,6.2057]
[1723167842559,25.88,161.17,161.14,6.2057]
[1723167842866,25.88,161.18,161.15,6.2052]
[1723167843250,25.88,161.18,161.13,21.7206]
[1723167843448,25.88,161.17,161.14,6.2055]
[1723167843869,25.88,161.17,161.13,21.7207]
[1723167844075,25.88,161.17,161.13,15.5146]
[1723167844297,25.88,161.19,161.13,15.5146]
[1723167844455,25.88,161.19,161.16,6.2048]
[1723167844785,25.88,161.21,161.18,6.2041]
[1723167844958,25.88,161.21,161.15,15.5126]
[1723167845158,25.88,161.21,161.17,6.2045]
[1723167845963,25.88,161.19,161.15,15.5126]
[1723167846160,25.88,161.19,161.16,6.2049]
[1723167847081,25.88,161.19,161.17,6.2045]
[1723167847657,25.88,161.19,161.16,6.2049]
[1723167847855,25.88,161.19,161.15,15.5126]
[1723167849666,25.88,161.19,161.15,21.7179]
[1723167853380,25.88,161.18,161.15,21.7179]
[1723167853756,25.88,161.2,161.16,6.2047]
[1723167854383,25.88,161.19,161.15,21.7179]
[1723167854579,25.88,161.19,161.15,15.5126]
[1723167854882,25.88,161.18,161.15,15.5126]
[1723167855271,25.88,161.17,161.14,6.2056]
[1723167859286,25.88,161.15,161.12,21.7225]
[1723167859471,25.88,161.13,161.09,15.5192]
[1723167859673,25.88,161.12,161.09,21.7268]
[1723167860795,25.88,161.12,161.1,6.2073]
[1723167860978,25.88,161.13,161.1,6.2073]
[1723167861283,25.88,161.12,161.09,21.7268]
[1723167861481,25.88,161.12,161.09,15.5192]
[1723167861691,25.88,161.12,161.08,6.208]
[1723167862085,15.518,161.18,161.08,15.5194]
[1723167862278,25.88,161.16,161.12,6.2065]
[1723167862472,25.88,161.15,161.12,6.2065]
[1723167862680,25.88,161.15,161.13,6.2061]
[1723167862998,24.21319041,161.18,161.13,6.2061]
[1723167862999,25.88,161.16,161.13,6.2061]
[1723167863290,25.88,161.17,161.14,6.2056]
[1723167863491,41.398,161.18,161.13,15.5152]
[1723167863893,41.398,161.18,161.14,6.2057]
[1723167864690,25.88,161.17,161.14,6.2057]
[1723167865571,41.398,161.18,161.14,6.2057]
[1723167866692,25.88,161.18,161.13,15.5152]
[1723167867182,25.88,161.18,161.14,6.2054]
[1723167867685,25.88,161.18,161.13,21.7213]
[1723167867889,25.88,161.15,161.1,15.5182]
[1723167868201,32.0854,161.15,161.1,15.5182]
[1723167868580,25.88,161.14,161.1,21.7254]
[1723167869269,25.88,161.13,161.09,6.2077]
[1723167869690,25.88,161.12,161.08,6.208]
[1723167870600,25.88,161.11,161.08,6.208]
[1723167871316,25.88,161.12,161.08,6.208]
[1723167871608,25.88,161.11,161.07,21.7294]
[1723167871782,25.88,161.09,161.05,6.209]
[1723167871985,25.88,161.08,161.05,6.209]
[1723167872208,25.88,161.07,161.04,6.2096]
[1723167872413,25.88,161.07,161.05,6.2091]
[1723167873715,25.88,161.08,161.05,6.2092]
[1723167874405,25.88,161.08,161.06,6.2088]
[1723167874607,25.88,161.1,161.06,6.2088]
[1723167874980,1.552159,161.09,161.06,6.2088]
[1723167875183,27.432159,161.09,161.06,6.2088]
[1723167875399,27.432159,161.09,161.05,6.2092]
[1723167875595,25.88,161.09,161.05,6.2092]